Cogmind - Beta 13 @@@ ROGUE MODE // 2024.04.14 @ 21:16:15 Player: Ryahrii Result: Self-destructed Performance ------------- Evolutions (1) 500 Regions Visited (2) 400 Robots Destroyed (26) 130 Value Destroyed (417) 417 Prototype IDs (0) 0 Alien Tech Used (0) 0 Bonus (8) 8 TOTAL SCORE: 1455 Bonus ------- High Alert Combat Kills 8 Cogmind --------- Core Integrity 216/400 Matter 254/300 Energy 99/100 System Corruption 2% Temperature Cool (0) Movement Rolling (90) Location -9/Materials Parts ------- > --- POWER (1) -------- (None) > --- PROPULSION (2) --- Armored Wheel > --- UTILITY (2) ------ Targeting Computer Targeting Computer > --- WEAPON (4) ------- Small Laser > --- INVENTORY (5) ---- Large Storage Unit High-capacity Storage Unit Utility Shielding Medium Armor Plating Field Recycling Unit (0) Peak State ------------ > --- POWER ------------ Ion Engine > --- PROPULSION ------- Wheel Armored Wheel > --- UTILITY ---------- Targeting Computer Targeting Computer > --- WEAPON ----------- EM Shotgun EM Shotgun Rocket Launcher > --- INVENTORY -------- Large Storage Unit High-capacity Storage Unit Terrain Scan Processor Field Recycling Unit Datajack [Rating: 12] Favorites ----------- Power Light Ion Engine Engine Light Ion Engine Propulsion Aluminum Leg Leg Aluminum Leg Wheel Wheel Flight Unit Flight Unit Utility Targeting Computer Device Field Recycling Unit Storage Medium Storage Unit Processor Targeting Computer Weapon EM Shotgun Energy Gun EM Shotgun Launcher Rocket Launcher Build | -11 -10 -9 ------- Run | Yrd Mat Mat Slots Evolved 2 | . . 2 Power . | . . . Propulsion . | . . . Utility . | . . . Weapon 2 | . . 2 Parts Attached 22 | 5 12 5 Power 2 | 1 1 . Engine 2 | 1 1 . Core . | . . . Reactor . | . . . Propulsion 7 | 2 2 3 Treads . | . . . Leg 2 | 2 . . Wheel 4 | . 2 2 Hover . | . . . Flight 1 | . . 1 Utility 7 | . 7 . Device 1 | . 1 . Storage 1 | . 1 . Processor 5 | . 5 . Hackware . | . . . Protection . | . . . Artifact . | . . . Weapon 6 | 2 2 2 Energy Gun 5 | 2 2 1 Energy Cannon . | . . . Ballistic Gun . | . . . Ballistic Cannon . | . . . Launcher 1 | . . 1 Special Weapon . | . . . Impact Weapon . | . . . Slashing Weapon . | . . . Piercing Weapon . | . . . Special Melee Weapon . | . . . Unidentified Prototypes . | . . . Corrupted Parts 1 | . . 1 System Corruption 2 | . . 2 Parts Lost 7 | . 2 5 Power 2 | . 1 1 Propulsion 2 | . 1 1 Utility . | . . . Weapon 3 | . . 3 Highest Loss Streak 5 | . 2 5 To Critical Strikes . | . . . Average Slot Usage (%) 87 | . 93 78 Engine 9 | . 10 8 Leg 13 | . 21 . Wheel 10 | . 5 20 Processor 23 | . 24 22 Energy Gun 24 | . 28 18 Launcher 3 | . . 8 Naked Turns . | . . . Heaviest Build 19 | 5 19 15 Greatest Support 22 | 20 20 22 Greatest Overweight (x) 1 | . . 1 Average Overweight (x) . | . . . Largest Inventory Capacity 10 | 5 10 5 Average Capacity 5 | 5 5 5 Most Carried 5 | 4 5 5 Average Carried 4 | 2 4 4 Final Capacity 5 | 5 5 5 Final Carried 5 | 3 5 5 Class Distribution -------------------- 80% | Mutant 19% | Gunner Dominant Class ---------------- Mutant | -10/Materials Gunner | -9/Materials Resources | -11 -10 -9 ----------- Run | Yrd Mat Mat Matter Collected 457 | 250 82 125 Remotely . | . . . Salvage Created 468 | 33 76 359 Parts 38 | 1 5 32 Haulers Intercepted 1 | . . 1 Recyclers Shooed . | . . . Parts Field Recycled . | . . . Retrieved Matter . | . . . Parts Self-Destructed . | . . . Prevented . | . . . Kills | -11 -10 -9 ------- Run | Yrd Mat Mat Combat Hostiles Destroyed 19 | 1 3 15 Guns 8 | 1 2 5 AOE 11 | . 1 10 Classes Destroyed 5 | 1 3 1 Worker 3 | . 1 2 Hauler 1 | . . 1 Watcher 3 | . 1 2 Swarmer 13 | . 3 10 Grunt 6 | 1 . 5 Best Kill Streak 8 | 1 4 8 Combat Bots Only 5 | 1 3 5 Max Kills in Single Turn 4 | 1 2 4 Gunslinging . | . . . Exploded 3 | . 1 3 Melee . | . . . Uniques/NPCs Destroyed . | . . . Combat | -11 -10 -9 -------- Run | Yrd Mat Mat Hostile Shots Fired 86 | 4 12 70 Missed 35 | 2 5 28 Damage Taken 727 | 23 215 489 Core 233 | 11 38 184 Absorbed by Shields . | . . . Core Remaining (%) 87 | 95 80 . Volleys Fired 30 | 4 4 22 Largest 2 | 2 2 2 Hottest 90 | 80 90 90 Shots Fired 44 | 8 8 28 Gun 34 | 8 8 18 Cannon . | . . . Launcher 10 | . . 10 Special . | . . . Kinetic . | . . . Thermal 16 | 8 2 6 Explosive 10 | . . 10 Electromagnetic 18 | . 6 12 Robot Hit Streak 6 | 2 5 6 Robot Miss Streak 2 | 1 1 2 Penetration Max . | . . . Secondary Targets 1 | . . 1 Max Gunslinging Chain 1 | . . 1 Shots Hit Robots 25 | 4 4 17 Core Hits 34 | 2 5 27 Critical Kills . | . . . Critical Parts Destroyed . | . . . Critical Strikes . | . . . Melee Attacks . | . . . Impact . | . . . Slashing . | . . . Piercing . | . . . Sneak Attacks . | . . . Combat Hostiles . | . . . Follow-up Attacks . | . . . Damage Inflicted 1423 | 46 242 1135 Guns 297 | 46 62 189 Cannons . | . . . Explosions 1108 | . 173 935 Melee . | . . . Ramming 18 | . 7 11 Kinetic . | . . . Thermal 88 | 46 . 42 Explosive 1076 | . 141 935 Electromagnetic 241 | . 94 147 Impact . | . . . Slashing . | . . . Piercing . | . . . Highest Corruption 2 | . . 2 Average Corruption 2 | . . 2 Corruption Purged . | . . . Corruption Blocked . | . . . Overload Shots . | . . . Overflow Damage 114 | . 56 58 Projectiles . | . . . Explosions 114 | . 56 58 Melee . | . . . Knockbacks . | . . . Impact . | . . . Kinetic . | . . . Secondary . | . . . Self-Inflicted Damage 179 | . 154 25 Shots 4 | . 3 1 Rammed 2 | . . 2 Targets Rammed 4 | . 2 2 Kicked 2 | . 2 . Crushed . | . . . Highest Temperature 102 | 66 60 102 Average Temperature 35 | 31 26 45 Received Heat Transfer 63 | 12 . 51 Siege Activations . | . . . Robots Corrupted . | . . . Combat Hostiles . | . . . Parts Fried . | . . . Impact Corruptions . | . . . Robots Melted . | . . . Combat Hostiles . | . . . Parts Melted 2 | 2 . . Heat Transferred 200 | 100 . 100 Parts Sabotaged . | . . . Parts Stolen . | . . . Parts Stripped . | . . . Power Chain Reactions 1 | . 1 . Alert | -11 -10 -9 ------- Run | Yrd Mat Mat Peak Influence 512 | 20 130 512 Initial 54 | . 13 54 Average 90 | 12 50 211 Maximum Alert Level 2 | . . 2 Low Security (%) 78 | 100 100 26 Level 1 17 | . . 60 Level 2 3 | . . 13 Level 3 . | . . . Level 4 . | . . . Level 5 . | . . . High Security . | . . . Max Security . | . . . Squads Dispatched . | . . . Investigation . | . . . Extermination . | . . . Reinforcement . | . . . Assault . | . . . Garrison . | . . . Intercept . | . . . Searches Triggered . | . . . Construction Impeded . | . . . Haulers Reinforced . | . . . Active Scanning Responses . | . . . Cargo Convoy Interrupts . | . . . Stealth | -11 -10 -9 --------- Run | Yrd Mat Mat Distress Signals 1 | . 1 . Communications Jammed . | . . . Distress Signals . | . . . Times Spotted 22 | 1 4 17 Peak Tracking Total 7 | 1 3 7 Tactical Retreats 1 | . 1 . Traps | -11 -10 -9 ------- Run | Yrd Mat Mat Traps Triggered 1 | . . 1 Indirectly . | . . . Trap Hack Attempts . | . . . Triggered . | . . . Disarmed . | . . . Reprogrammed . | . . . Reused . | . . . Traps Extracted . | . . . Installed . | . . . Triggered . | . . . Machines | -11 -10 -9 ---------- Run | Yrd Mat Mat Machines Disabled 3 | . 2 1 Max in Single Turn 2 | . 2 1 Machines Repaired . | . . . Machines Dismantled . | . . . Machines Sabotaged . | . . . Overloaded Fab Kills . | . . . Hacking | -11 -10 -9 --------- Run | Yrd Mat Mat Machines Accessed 4 | . 3 1 Terminals 4 | . 3 1 Fabricators . | . . . Repair Stations . | . . . Recycling Units . | . . . Scanalyzers . | . . . Garrison Access . | . . . Total Hacks 8 | . 7 1 Successful 4 | . 3 1 Failed 4 | . 4 . Catastrophic 1 | . 1 . Database Lockouts . | . . . Manual . | . . . Terminals 8 | . 7 1 Fabricators . | . . . Repair Stations . | . . . Recycling Units . | . . . Scanalyzers . | . . . Garrison Access . | . . . Terminal Hacks 4 | . 3 1 Record 2 | . 2 . Registered Components 1 | . 1 . Zone Layout 1 | . . 1 Fabricator Hacks . | . . . Repair Station Hacks . | . . . Recycling Unit Hacks . | . . . Scanalyzer . | . . . Garrison Access Hacks . | . . . Unauthorized Hacks . | . . . Terminals . | . . . Fabricators . | . . . Repair Stations . | . . . Recycling Units . | . . . Scanalyzers . | . . . Garrison Access . | . . . Data Cores Recovered . | . . . Used . | . . . Hacking Detections 2 | . 2 . Full Trace Events . | . . . Feedback Events . | . . . Feedback Blocked . | . . . Robot Schematics Acquired . | . . . Robots Built . | . . . Authchips . | . . . Time . | . . . Total Robot Build Rating . | . . . Part Schematics Acquired . | . . . Parts Built . | . . . Authchips . | . . . Time . | . . . Total Part Build Rating . | . . . Parts Repaired . | . . . Time . | . . . Parts Recycled . | . . . Recycled Matter . | . . . Retrieved Matter . | . . . Retrieved Components . | . . . Parts Scanalyzed . | . . . Part Schematics Acquired . | . . . Parts Damaged . | . . . Bothacking | -11 -10 -9 ------------ Run | Yrd Mat Mat Used RIF Installer . | . . . Robots Hacked . | . . . Non-combat . | . . . Combat . | . . . Robot Hacks Applied . | . . . Relay Couplers Released . | . . . Fabnet Peak Effective % . | . . . Robots Rewired . | . . . Allies Hacked . | . . . Hacks Repelled . | . . . Allies | -11 -10 -9 -------- Run | Yrd Mat Mat Total Allies . | . . . Largest Group . | . . . Highest-Rated Group . | . . . Highest-Rated Ally . | . . . Total Orders . | . . . Ally Attacks . | . . . Total Damage . | . . . Kills . | . . . Allies Corrupted . | . . . Allies Melted . | . . . Intel | -11 -10 -9 ------- Run | Yrd Mat Mat Robot Analysis Total . | . . . Derelict Logs Recovered . | . . . Drone Launches . | . . . Drone Recoveries . | . . . Exploration | -11 -10 -9 ------------- Run | Yrd Mat Mat Turns Passed 1264 | 245 650 369 Spaces Moved 1009 | 101 547 361 Core 30 | 30 . . Treads . | . . . Legs 468 | 71 397 . Wheels 511 | . 150 361 Hover . | . . . Flight . | . . . Fastest Speed 50 | 50 80 80 Average Speed 98 | 99 109 83 Slowest Speed 120 | 120 120 95 Overloaded Moves . | . . . Propulsion Burnouts . | . . . Robots Hopped . | . . . Cave-ins Triggered . | . . . Exploration Rate (%) 34 | 7 68 27 Regions Visited 2 Branch Regions . Pre-discovered Areas . | . . . Known Exits Taken . | . . . Unknown Exits Taken 2 | 1 1 . Scrap Searched . | . . . Spaces Dug . | . . . Terrain Destroyed 127 | . 25 102 Melee . | . . . Projectile . | . . . AOE 127 | . 25 102 Terrain Rammed . | . . . Walls Destroyed . | . . . Machines Disabled . | . . . Actions | -11 -10 -9 --------- Run | Yrd Mat Mat Total 1235 | 238 596 401 Wait 121 | 121 . . Move 1007 | 100 546 361 Hop . | . . . Pick Up 30 | 8 17 5 Fast Attach 6 | . 3 3 Attach 12 | 5 7 . Detach 2 | . 2 . Swap 4 | . 2 2 Drop 19 | . 13 6 Fire 30 | 4 4 22 Melee . | . . . Ram 2 | . . 2 Kick 2 | . 2 . Crush . | . . . Escape Stasis . | . . . Rewire . | . . . Trap . | . . . Miscellaneous . | . . . Route ------- -11/Scrapyard -10/Materials (discovered 4 exits: *Mat x3 / [*Min]) -9/Materials History --------- Turn | Location | Event 2 | -11/Scrapyard | Met Revision 17 78 | -11/Scrapyard | Discovered new exit (range 8) 246 | -11/Scrapyard | Entered Materials 301 | -10/Materials | Build established: Mutant 418 | -10/Materials | Discovered new exit (range 16) 724 | -10/Materials | Discovered new exit (range 3) 806 | -10/Materials | Discovered new exit (range 5) 884 | -10/Materials | Discovered new exit (range 16) 896 | -10/Materials | Entered another Materials area 896 | -9/Materials | Evolved 2 slots: Weapon x2 1252 | -9/Materials | Lost 5 parts (1p1n3w) 1265 | -9/Materials | Self-destructed Last Messages --------------- K-01 Serf collects debris. U-05 Engineer lays Concrete. U-05 Engineer builds a Wall. U-05 Engineer lays Concrete. Slammed into U-05 Engineer. K-01 Serf collects debris. U-05 Engineer lays Concrete. S-10 Pest destroyed. U-05 Engineer builds a Wall. U-05 Engineer lays Concrete. K-01 Serf collects debris. U-05 Engineer lays Concrete. U-05 Engineer builds a Wall. K-01 Serf collects debris. U-05 Engineer lays Concrete. Acquired 24 matter. Acquired Corrupted Sml. Laser. Integrated Corrupted Sml. Laser (+2). S-10 Pest destroyed. K-01 Serf collects debris. Map ----- +----------------------------------------------------+ | ?????????????????????????# """ #????# ! # | | ?????????????????????????# #????######### | | ?????????????????????????#*!! """ #????????????#+# | | ?????????????????????????#*!! """ #??????????????? | | ?????????????????????????#!! """ #??????????????? | | ?????????????????????????# #??????????????? | | ?????????????????????????#####+############# """ | | ??????????????????????####### !!! # """ | | ??????????????? !! # """ | | ?????????????????????######## !! ! # | | ?????????????????????# ????# ########## | | ?????????????????????# ??# # | | ?????????????????????# """ # """ # | | ?????????????????????# """ + """ # """ | | ?????????????????????# """ # """ # """ | | ?????????????????????# ??# # """ S | | ?????????????????????###????# # " | | ????????????????????????????# k """ #####+#### | | ???????????????????##???????# """ # | | ?????????????????### ###????#= """ # | | ??????? ############ ######a # | | ??????? *% ! * # | | ??????? Y! != ############ # | | ??????? =% ## # *# | | ?????????????#### ## =%[ ## T """ # ! + | | ???????????????????# @ ## """ # !# " | | ???????????????????# =%[ + """ + + " | | ???????????????????# #### # # # " | | ???##?######???????# #?## # # ### " | | ?## ## # ##??????# #?# ! !# # #?# " | | # # ######## #?## !! !## # #?# | | #??# ######/##+## #?### | | % #??#### ##????# ## ##### | | #???#####?????# ## # | | ## ###########?????????????# ## # | | %= ###????????????????# ## # | | ! """ #??????????????????# ## + | | """ """ #??????????????????? #?#????? | | """ """ #???????????????????? ###??????? | | """ # # #???????????????????? #????????? | | """ #???????????????????? #????????? | | ##### """ #???????????????????? ?????????? | | ????# =* """ #??????????????????????????????? | | ????# *%= ???????????????????????????????? | | ???? %%[ #######???????????????????????????????? | | ????! [ *[ #?????????????????????????????????????? | | ??? *[ ??????????????????????????????????????? | | ??? % ??????????????????????????????????????? | | ???? ??????????????????????????????????????? | | ?????? #???????????????????????????????????????? | +----------------------------------------------------+ Best States ------------- Heat Dissipation 28 Energy Generation 10 Energy Capacity 250 Matter Stores 300 Matter Capacity 300 Sight Range 16 Terrain Scan Density 160 Evasion (%) 55 Targeting Accuracy 10 Item Schematics ----------------- None Robot Schematics ------------------ None Fabricated ------------ Nothing Alien Tech Used ----------------- None Achievements -------------- Loot Pinata Challenges ------------ None Game ------ Seed ConstructMetaRailgun Manual? 0 Play Time 00:27:57 Cumulative 0.4 hours Start 2024.04.14 @ 20:37:06 End 2024.04.14 @ 21:16:15 Sessions 1 Manual Loads 0 Difficulty Rogue Special Mode None Game No. 1 Rogue 1 Adventurer 0 Explorer 0 Win Type - Total 0 Types 0/0/0/0/0/0/0/0/0 Lore% 0 Gallery% 1 Achievement% 0 Wizard Run 0 Options --------- Layout 1 ASCII 0 Keyboard 0 Movement Mouse Keybinds 0 Fullscreen 1 Font 24/Smallcaps Map View 50x35 Zoom Use 0% Tactical HUD 0 Map Filters NONE Filters NONE Steam 1 RUN: c4d3f120-42c5-47ef-8701-36aff7e1b926